bitfinex/quotes_ETHUSD_20220103
["timestamp","ask_amount","ask_price","bid_price","bid_amount"]
[1641175522872,9.6825248,3803.8,3803.7,0.00619544]
[1641175523674,8.6825248,3803.8,3803.7,0.00619544]
[1641175524076,12.32448492,3803.8,3803.7,0.00619544]
[1641175526617,12.32448492,3803.8,3803.7,0.00261706]
[1641175526823,1.31497,3803.1,3802.4,6.07654688]
[1641175527118,2.8694739,3803.0,3802.5,0.00795793]
[1641175527517,1.0,3802.9,3802.5,0.00795793]
[1641175527721,4.24140347,3802.8,3802.5,0.00795793]
[1641175527917,4.89896867,3802.8,3802.5,0.00795793]
[1641175528119,1.0,3802.7,3802.5,0.00795793]
[1641175528322,2.8694739,3802.6,3802.5,0.00795793]
[1641175529081,5.72729157,3802.6,3802.5,0.00795793]
[1641175529769,10.46733195,3802.6,3802.5,0.00795793]
[1641175530570,7.60951428,3802.6,3802.5,0.00795793]
[1641175530769,8.45,3802.5,3801.7,0.05302853]
[1641175530974,1.3153,3802.2,3801.7,0.05302853]
[1641175531167,1.3153,3802.2,3801.8,0.00397897]
[1641175531168,2.8694739,3802.1,3801.8,0.00397897]
[1641175531368,3.1694739,3802.1,3801.8,0.00397897]
[1641175531571,3.1694739,3802.1,3801.1,3.8982]
[1641175531572,1.0,3802.0,3801.6,0.00511581]
[1641175531769,2.8694739,3801.9,3801.6,0.00511581]
[1641175531968,0.65778,3801.5,3801.2,0.00738951]
[1641175532169,0.65778,3801.5,3801.0,1.12602218]
[1641175532170,2.8694739,3801.4,3801.1,0.00795793]
[1641175532368,0.99809457,3801.3,3801.1,0.00795793]
[1641175532570,2.8694739,3801.2,3801.1,0.00795793]
[1641175534016,5.82253094,3801.2,3801.1,0.00795793]
[1641175534915,5.82253094,3801.2,3801.1,0.0115387]
[1641175546473,5.82253094,3801.2,3800.5,3.07854966]
[1641175546678,5.82253094,3801.2,3801.0,0.65763]
[1641175546870,5.82253094,3801.2,3800.8,0.5918779]
[1641175547069,5.82253094,3801.2,3800.6,0.00284212]
[1641175547275,5.82253094,3801.2,3800.9,0.00113685]
[1641175547917,2.95305704,3801.1,3800.9,0.00113685]
[1641175548118,2.8694739,3801.0,3800.9,0.00113685]
[1641175549619,5.82253094,3801.0,3800.9,0.00113685]
[1641175550520,5.82253094,3801.0,3800.8,0.00170527]
[1641175550920,5.82253094,3801.0,3800.4,0.00397897]
[1641175551575,0.65773,3800.9,3800.4,0.66170897]
[1641175551765,2.8694739,3800.8,3800.6,0.5919508]
[1641175552160,2.8694739,3800.8,3800.7,0.00227369]
[1641175552862,5.82253094,3800.8,3800.7,0.00227369]
[1641175555919,5.82253094,3800.8,3800.7,1.79389]
[1641175556321,5.82253094,3800.8,3800.7,0.00227369]
[1641175558122,5.82253094,3800.8,3800.7,1.79389]
[1641175558722,5.82253094,3800.8,3800.7,0.00227369]
[1641175562812,5.82253094,3800.8,3800.6,2.3358408]
[1641175563013,6.48028094,3800.8,3800.6,2.3358408]
[1641175563615,6.48028094,3800.8,3800.6,0.54422449]
[1641175564017,2.95305704,3800.7,3800.6,0.49422449]
[1641175564215,5.82253094,3800.7,3800.6,0.49422449]
[1641175566763,5.82253094,3800.7,3800.6,2.2858408]
[1641175568063,5.82253094,3800.7,3800.6,1.79161631]
[1641175569463,5.82253094,3800.7,3800.3,3.40919528]
[1641175569765,7.13813094,3800.7,3800.4,0.00170528]
[1641175570420,2.95305704,3800.6,3800.4,0.00170528]
[1641175570619,2.8694739,3800.5,3800.4,0.00170528]
[1641175571220,2.8694739,3800.5,3800.4,1.79332159]
[1641175572222,2.8694739,3800.5,3800.4,0.00170528]
[1641175585720,5.8557729,3800.5,3800.4,0.00170528]
[1641175587823,8.3,3800.4,3800.3,0.05279104]
[1641175588021,2.8694739,3800.4,3800.3,0.05279104]
[1641175588225,5.97803247,3800.4,3800.3,0.05279104]
[1641175589263,5.97803247,3800.4,3800.3,8.597e-05]
[1641175590566,10.7525237,3800.4,3800.3,8.597e-05]
[1641175593623,11.7525237,3800.4,3800.3,8.597e-05]
[1641175594026,8.45,3800.3,3799.2,1.79161631]
[1641175594228,0.65808,3799.6,3799.2,1.79161631]
[1641175594427,6.00681183,3799.5,3799.3,0.00625265]
[1641175594627,2.82575184,3799.4,3799.3,0.00625265]
[1641175594825,6.69522574,3799.4,3799.3,0.00625265]
[1641175595226,7.83664229,3799.4,3799.3,0.00625265]
[1641175595427,7.83664229,3799.4,3799.0,0.00795792]
[1641175595628,0.65814,3799.2,3799.0,0.00795792]
[1641175595825,2.8694739,3799.1,3799.0,0.00795792]
[1641175596427,5.66669677,3799.1,3799.0,0.00795792]
[1641175596870,2.8694739,3799.1,3799.0,0.00795792]
[1641175597470,2.8694739,3799.1,3798.7,0.00966319]
[1641175597672,0.6581,3798.9,3798.7,0.00966319]
[1641175597870,2.8694739,3798.8,3798.7,0.00966319]
[1641175598071,5.67653419,3798.8,3798.7,0.00966319]
[1641175599671,5.67653419,3798.8,3798.4,1.79161631]
[1641175599672,0.65819,3798.7,3798.5,0.01080004]
[1641175599872,2.8694739,3798.6,3798.5,0.01080004]
[1641175600523,2.8694739,3798.6,3798.4,0.01136846]
[1641175600727,5.8557729,3798.6,3798.4,0.01136846]
[1641175601623,5.8557729,3798.6,3798.1,0.01307373]
[1641175601823,0.65816,3798.5,3798.1,0.01307373]
[1641175602027,2.8694739,3798.4,3798.1,1.80469004]
[1641175602526,2.8694739,3798.4,3798.2,0.01250531]
[1641175602826,2.986299,3798.3,3798.2,0.01250531]
[1641175603025,5.8557729,3798.3,3798.2,0.01250531]
[1641175606067,5.8557729,3798.3,3798.1,0.01307373]
[1641175607671,2.8694739,3798.3,3798.1,0.01307373]
[1641175607925,2.8694739,3798.3,3798.1,1.80469004]
[1641175608325,2.8694739,3798.3,3798.2,11.43635813]
[1641175608525,2.8694739,3798.3,3798.2,11.83007198]
[1641175608826,2.8694739,3798.3,3798.2,0.40621916]
[1641175609028,2.8694739,3798.3,3798.2,3.75621916]
[1641175609329,2.8694739,3798.3,3798.2,4.41427916]
[1641175609924,2.8694739,3798.3,3798.2,1.06427916]
[1641175612183,2.8694739,3798.3,3798.2,3.73076139]
[1641175613484,2.8694739,3798.3,3798.2,4.03076139]
[1641175614983,2.8694739,3798.3,3798.2,1.36427916]
[1641175615420,2.8694739,3798.3,3798.2,3.94914141]
[1641175615620,2.8694739,3798.3,3798.2,1.36427916]
[1641175617724,2.8694739,3798.3,3798.2,3.13010936]
[1641175618022,2.8694739,3798.3,3798.2,1.36427916]
[1641175622937,2.8694739,3798.3,3798.2,1.05156531]
[1641175623236,2.8694739,3798.3,3798.2,0.39350531]
[1641175623635,5.85733872,3798.3,3798.2,0.39350531]
[1641175624337,2.8694739,3798.3,3798.2,0.39350531]
[1641175624838,2.8694739,3798.3,3798.2,0.01250531]
[1641175625841,2.8694739,3798.3,3797.8,2.6889721]
[1641175625842,7.55,3798.2,3797.8,2.6889721]
[1641175626040,2.8694739,3798.3,3797.8,1.79285924]
[1641175626041,6.1529834,3798.1,3797.8,1.79285924]
[1641175626245,6.1529834,3798.1,3797.9,0.00170527]
[1641175626440,3.13191394,3798.0,3797.9,0.00170527]
[1641175626696,6.00138784,3798.0,3797.9,0.00528825]
[1641175626887,2.8694739,3798.0,3797.9,0.00528825]
[1641175627093,5.76259363,3798.0,3797.9,0.00528825]
[1641175627890,6.42095363,3798.0,3797.9,0.00528825]
[1641175628290,0.6074,3797.6,3797.3,0.92555297]
[1641175628492,0.6074,3797.6,3796.8,2.68976884]
[1641175628493,8.45,3797.3,3796.8,2.68976884]
[1641175628693,3.2504739,3797.2,3796.8,2.68976884]
[1641175628890,0.65857,3797.0,3796.8,2.68976884]
[1641175629093,8.9194739,3796.9,3796.0,4.47144229]
[1641175629296,1.61916602,3796.5,3795.4,0.54237827]
[1641175629495,2.8694739,3796.4,3796.1,0.01023162]
[1641175629701,4.1868394,3796.4,3796.1,0.01023162]
[1641175629892,0.95868,3796.3,3796.1,0.01023162]
[1641175630093,14.29560476,3796.2,3796.1,3.162e-05]
[1641175630334,14.29560476,3796.2,3795.5,0.00344216]
[1641175630537,2.72796325,3796.1,3795.5,0.00344216]
[1641175630732,2.8694739,3796.0,3795.5,0.00344216]
[1641175630931,1.03983,3795.9,3795.5,0.00344216]
[1641175631129,2.8694739,3795.8,3795.5,0.00344216]
[1641175631330,0.381,3795.7,3795.5,0.00344216]
[1641175631531,11.3194739,3795.6,3795.5,0.00344216]
[1641175631928,12.3194739,3795.6,3795.5,0.00344216]
[1641175632130,13.6372239,3795.6,3795.5,0.00344216]
[1641175632332,5.1872239,3795.6,3795.5,0.00344216]
[1641175632534,8.88247801,3795.6,3795.5,0.00344216]
[1641175632933,0.54237827,3795.4,3794.0,0.00352708]
[1641175633134,0.54237827,3795.4,3793.3,11.93434229]
[1641175633135,8.45,3795.2,3793.3,4.47144229]
[1641175633334,0.01226552,3794.4,3794.1,0.00795793]
[1641175633536,9.76825,3794.2,3794.1,0.00795793]
[1641175633729,9.76825,3794.2,3793.2,4.27940022]
[1641175633730,8.45,3794.1,3793.2,4.27940022]
[1641175633932,0.65917,3793.7,3793.2,4.27940022]
[1641175634215,2.37785912,3793.2,3793.0,0.507]
[1641175634412,2.37785912,3793.2,3792.0,7.45240382]
[1641175634413,8.45,3792.9,3792.0,6.95841636]
[1641175634611,8.45,3792.9,3792.0,6.59131498]
[1641175634612,8.0084739,3792.8,3792.0,6.59131498]
[1641175634811,8.0084739,3792.8,3791.4,4.58297035]
[1641175634812,9.4132739,3792.8,3791.4,4.58297035]
[1641175635021,1.18665,3792.2,3791.4,4.58297035]
[1641175635213,4.43123414,3792.1,3791.4,4.58297035]
[1641175635413,4.73123414,3792.1,3791.4,4.58297035]
[1641175635612,0.65944,3791.9,3791.4,4.58297035]
[1641175635815,0.65944,3791.9,3791.3,0.01136847]
[1641175635816,3.2504739,3791.8,3791.3,0.01136847]
[1641175636012,3.6544739,3791.8,3791.3,0.01136847]
[1641175636213,1.0,3791.7,3791.1,4.54844524]
[1641175636515,4.758,3791.4,3791.1,3.41385535]
[1641175636722,4.2504739,3791.3,3791.1,3.41385535]
[1641175636911,4.2504739,3791.3,3790.2,8.9705647]
[1641175636912,4.6504739,3791.3,3790.2,8.4205647]
[1641175637111,3.5,3791.2,3790.2,8.4205647]
[1641175637310,3.5,3791.2,3790.3,0.00568423]
[1641175637311,3.2504739,3791.1,3790.3,0.00568423]
[1641175637514,4.5504739,3791.1,3790.3,0.00568423]
[1641175637828,4.5504739,3791.1,3790.2,8.4205647]
[1641175638027,3.5,3791.0,3790.2,8.37624893]
[1641175638230,3.2504739,3790.9,3790.2,8.37624893]
[1641175638426,3.25388444,3790.9,3790.3,2.9307921]
[1641175638627,0.00284211,3790.8,3790.3,1.22583594]
[1641175638825,2.8694739,3790.7,3790.3,4.15662804]
[1641175639024,2.87174759,3790.7,3790.4,0.381]
[1641175639224,2.87174759,3790.7,3790.6,8.55]
[1641175639225,0.73077917,3790.7,3790.6,8.55]
[1641175639426,4.33590525,3791.9,3790.7,8.55]
[1641175639629,1.73629046,3791.9,3791.1,4.758]
[1641175639828,1.73629046,3791.9,3791.2,3.3117921]
[1641175640132,1.73629046,3791.9,3791.2,4.3117921]
[1641175640629,1.73629046,3791.9,3791.2,1.381]
[1641175640827,1.73629046,3791.9,3791.5,1.1774035]
[1641175641031,1.73629046,3791.9,3791.6,3.14095657]
[1641175641229,3.12681479,3792.2,3791.6,3.14095657]
[1641175641230,2.99284378,3792.1,3791.6,3.14095657]
[1641175641432,2.99284378,3792.1,3791.7,1.0]
[1641175641687,2.99284378,3792.1,3792.0,4.758]
[1641175641688,0.00852635,3792.1,3792.0,4.758]
[1641175641886,0.00852635,3792.1,3792.0,8.58131353]
[1641175642085,0.00852635,3792.1,3792.0,9.58131353]
[1641175642884,0.00852635,3792.1,3792.0,10.24029353]
[1641175643089,0.00852635,3792.1,3792.0,9.58131353]
[1641175643983,5.28272635,3792.1,3792.0,9.58131353]
[1641175644185,5.28272635,3792.1,3792.0,10.66381585]
[1641175644383,0.05236161,3792.4,3792.1,8.55]
[1641175644585,0.05236161,3792.4,3792.2,4.0517855]
[1641175644785,0.05236161,3792.4,3792.3,2.59618771]
[1641175644984,0.05236161,3792.4,3792.3,3.27718771]
[1641175645189,0.00170527,3792.4,3792.3,4.27718771]
[1641175646843,0.00170527,3792.4,3792.3,1.681]
[1641175647039,0.00170527,3792.4,3792.3,3.32113668]
[1641175647339,0.00170527,3792.4,3792.3,0.681]
[1641175647540,0.00170527,3792.4,3792.3,4.31447697]
[1641175647744,0.00170527,3792.4,3792.3,3.38796387]
[1641175647939,0.00170527,3792.4,3792.3,4.38796387]
[1641175648341,0.00170527,3792.4,3792.3,1.681]
[1641175648543,5.27550527,3792.4,3792.3,0.681]
[1641175648742,4.15871239,3792.0,3791.4,1.31814]
[1641175648944,5.2738,3791.9,3791.0,3.5]
[1641175649184,2.86532998,3791.8,3791.5,0.00341054]
[1641175649381,4.15871239,3792.0,3791.5,0.00341054]
[1641175649382,5.2738,3791.7,3791.5,0.00341054]
[1641175649782,1.51204714,3791.6,3791.5,0.00341054]
[1641175650486,6.78584714,3791.6,3791.5,0.00341054]
[1641175651082,10.28584714,3791.6,3791.5,0.00341054]
[1641175651482,11.28584714,3791.6,3791.5,0.00341054]
[1641175651881,11.28584714,3791.6,3791.0,3.49021054]
[1641175652079,1.0,3791.5,3791.1,0.0022737]
[1641175652279,5.6548,3791.4,3791.1,0.0022737]
[1641175653127,5.6548,3791.4,3791.0,1.92658424]
[1641175653324,0.00113684,3791.3,3791.0,1.91338424]
[1641175653523,5.2738,3791.2,3791.0,1.91338424]
[1641175654827,1.381,3791.1,3791.0,1.91338424]
[1641175655024,6.6548,3791.1,3791.0,1.91338424]
[1641175656428,1.91338424,3791.0,3790.2,2.1205647]
[1641175656689,5.6548,3790.9,3790.2,2.1205647]
[1641175656885,5.6548,3790.9,3790.3,0.00454738]
[1641175657684,2.99259226,3790.4,3790.3,0.00454738]
[1641175657883,8.26639226,3790.4,3790.3,0.00454738]
[1641175659485,6.95086771,3790.4,3790.3,0.00454738]
[1641175659885,6.95086771,3790.4,3790.3,0.66388738]
[1641175660085,6.95086771,3790.4,3790.3,1.66388738]
[1641175660358,5.2738,3790.4,3790.3,0.66388738]
[1641175660950,5.2738,3790.4,3790.3,1.88382948]
[1641175661347,5.2738,3790.4,3790.3,2.88382948]
[1641175661551,2.59961479,3791.4,3790.5,8.55]
[1641175661750,2.59961479,3791.4,3790.9,0.65916]
[1641175661949,2.59961479,3791.4,3791.1,0.01204528]
[1641175662149,5.2753,3791.3,3791.2,8.931]
[1641175662348,5.2753,3791.3,3791.2,4.85073882]
[1641175662349,5.28098423,3791.3,3791.2,4.85073882]
[1641175662551,5.28098423,3791.3,3791.2,5.81153529]
[1641175662747,5.28098423,3791.3,3791.2,0.681]
[1641175663349,8.27358283,3791.3,3791.2,0.681]
[1641175663553,8.27358283,3791.3,3791.2,0.631]
[1641175664975,8.27358283,3791.3,3791.2,3.32204602]
[1641175665776,8.27358283,3791.3,3791.2,0.631]
[1641175667481,8.27358283,3791.3,3791.2,7.19319362]
[1641175667678,8.27358283,3791.3,3791.2,1.64319362]
[1641175667934,8.27358283,3791.3,3791.2,4.48107177]
[1641175668539,8.27358283,3791.3,3791.2,3.48107177]
[1641175669335,8.27358283,3791.3,3791.2,0.64319362]
[1641175669537,8.27358283,3791.3,3791.2,3.25223828]
[1641175669738,8.27358283,3791.3,3791.2,0.64319362]
[1641175669936,8.27358283,3791.3,3791.2,3.23871386]
[1641175670739,8.27358283,3791.3,3791.2,3.26966771]
[1641175671981,8.27358283,3791.3,3791.2,3.92884771]
[1641175672380,8.27358283,3791.3,3791.2,1.30237362]
[1641175672780,8.27358283,3791.3,3791.2,3.90251798]
[1641175673080,8.27358283,3791.3,3791.2,1.30237362]
[1641175673279,8.27358283,3791.3,3791.2,3.87781878]
[1641175673481,5.28098423,3791.3,3791.2,4.91015095]
[1641175673682,1.73766108,3792.6,3792.0,3.29944556]
[1641175673892,1.73766108,3792.6,3792.2,0.01274503]
[1641175674083,1.73766108,3792.6,3792.4,0.65892]
[1641175674380,1.73766108,3792.6,3792.5,8.031]
[1641175674581,1.73766108,3792.6,3792.5,3.26339352]
[1641175674782,1.74505058,3792.6,3792.5,1.681]
[1641175674983,0.0073895,3792.6,3792.5,2.72097899]
[1641175675181,0.0073895,3792.6,3792.5,18.15789725]
[1641175675841,0.0073895,3792.6,3792.5,2.75789725]
[1641175676045,0.0073895,3792.6,3792.5,4.42884464]
[1641175676247,2.99946615,3792.6,3792.5,3.61639457]
[1641175676643,2.99946615,3792.6,3792.5,0.90546819]
[1641175676843,2.99946615,3792.6,3792.5,3.52030147]
[1641175677044,2.99946615,3792.6,3792.5,3.50546819]
[1641175677245,2.99946615,3792.6,3792.5,2.9]
[1641175677445,8.27296615,3792.6,3792.5,3.2]
[1641175677643,8.27296615,3792.6,3792.5,5.86289581]
[1641175677843,8.27296615,3792.6,3792.5,3.2]
[1641175678245,8.27296615,3792.6,3792.5,5.8108286]
[1641175679678,8.27296615,3792.6,3792.5,3.2]
[1641175680180,8.27296615,3792.6,3792.5,2.6]
[1641175681584,8.27296615,3792.6,3792.5,3.2]
[1641175683238,8.27296615,3792.6,3792.5,2.6]
[1641175684638,8.27296615,3792.6,3792.5,3.2]
[1641175692828,8.27296615,3792.6,3792.5,3.20358808]
[1641175697493,8.27296615,3792.6,3792.5,2.60358808]
[1641175699057,8.27296615,3792.6,3792.5,3.20358808]
[1641175703890,8.27296615,3792.6,3792.5,2.60358808]
[1641175704690,8.26557665,3792.6,3792.5,2.60358808]
[1641175705338,8.26557665,3792.6,3792.5,3.20358808]
[1641175707143,8.26557665,3792.6,3792.5,5.765245]
[1641175707343,8.26557665,3792.6,3792.5,3.20358808]
[1641175707944,8.26557665,3792.6,3792.5,5.78155768]
[1641175709226,8.26557665,3792.6,3792.5,6.44055768]
[1641175709732,8.26557665,3792.6,3792.5,3.86258808]
[1641175709933,8.26557665,3792.6,3792.5,16.69257117]
[1641175709934,4.07964488,3792.6,3792.5,16.69257117]
[1641175710134,4.07964488,3792.6,3792.5,16.71876854]
[1641175710628,4.07964488,3792.6,3792.5,8.34323673]
[1641175710829,4.07964488,3792.6,3792.5,5.5339737]
[1641175711032,4.07964488,3792.6,3792.5,12.49624573]
[1641175711229,0.05211902,3792.9,3792.6,8.6]
[1641175711430,0.05211902,3792.9,3792.7,1.5009741]
[1641175711631,0.05211902,3792.9,3792.7,18.2009741]
[1641175711830,0.05211902,3792.9,3792.7,18.5009741]
[1641175712032,0.05211902,3792.9,3792.8,11.69160735]
[1641175712234,0.05211902,3792.9,3792.8,27.31607554]
[1641175712432,0.05211902,3792.9,3792.8,28.31607554]
[1641175712848,1.03264281,3794.1,3792.8,30.08046474]
[1641175713047,1.73766108,3794.3,3792.8,30.08046474]
[1641175713048,1.73766108,3794.3,3793.4,0.65875]
[1641175713250,0.00682108,3794.0,3793.7,0.65875]
[1641175713449,5.2717,3793.9,3793.8,3.06539944]
[1641175713648,5.27795266,3793.9,3793.8,3.36539944]
[1641175714548,5.27795266,3793.9,3793.8,0.681]
[1641175714751,5.27795266,3793.9,3793.8,4.45554125]
[1641175715152,5.27795266,3793.9,3793.8,4.75554125]
[1641175716352,4.77795266,3793.9,3793.8,4.75554125]
[1641175717094,4.77795266,3793.9,3793.8,7.35554125]
[1641175718497,4.77795266,3793.9,3793.8,7.35912811]
[1641175718899,4.77795266,3793.9,3793.8,4.70445896]
[1641175719200,4.72795266,3793.9,3793.8,3.28458686]
[1641175720638,4.72795266,3793.9,3793.8,3.58458686]
[1641175721043,4.72795266,3793.9,3793.8,3.28458686]
[1641175721239,4.72795266,3793.9,3793.8,3.58458686]
[1641175721441,4.72795266,3793.9,3793.8,5.86029438]
[1641175721641,4.72795266,3793.9,3793.8,3.58458686]
[1641175728741,4.72795266,3793.9,3793.8,6.21835494]
[1641175728938,4.72795266,3793.9,3793.8,6.87709494]
[1641175729140,4.72795266,3793.9,3793.8,4.24332686]
[1641175730540,7.71891491,3793.9,3793.8,4.24332686]
[1641175735747,7.71891491,3793.9,3793.8,3.86232686]
[1641175736046,7.71891491,3793.9,3793.8,3.20358686]
[1641175736643,9.00661363,3793.9,3793.8,3.20358686]
[1641175737143,9.00661363,3793.9,3793.8,2.60358686]
[1641175737545,6.01565138,3793.9,3793.8,2.60358686]
[1641175738743,6.01565138,3793.9,3793.8,2.90358686]
[1641175738943,6.01565138,3793.9,3793.8,3.20358686]
[1641175742503,4.72795266,3793.9,3793.8,3.20358686]
[1641175742707,4.83602866,3793.9,3793.8,3.20358686]
[1641175743561,4.829776,3793.9,3793.8,4.27603968]
[1641175743767,4.829776,3793.9,3793.8,4.65703968]
[1641175743960,4.829776,3793.9,3793.8,5.65703968]
[1641175744160,0.05170873,3794.2,3794.0,16.0586]
[1641175744359,0.05170873,3794.2,3794.1,9.58525359]
[1641175744561,0.05170873,3794.2,3794.1,10.8506467]
[1641175744759,0.05170873,3794.2,3794.1,10.89063816]
[1641175744960,5.32300873,3794.2,3794.1,2.84063816]
[1641175745162,5.2713,3794.2,3794.1,2.83171392]
[1641175745564,5.2713,3794.2,3794.1,1.83171392]
[1641175746162,5.2713,3794.2,3794.1,2.83171392]
[1641175746369,5.2713,3794.2,3794.1,1.83171392]
[1641175747798,5.2713,3794.2,3794.1,1.83491586]
[1641175748599,5.2713,3794.2,3794.1,3.72319456]
[1641175748802,5.2713,3794.2,3794.1,4.72319456]
[1641175749399,5.2713,3794.2,3794.1,2.83491586]
[1641175751251,5.2713,3794.2,3794.1,4.71498856]
[1641175751550,5.2713,3794.2,3794.1,2.83491586]
[1641175753354,5.2713,3794.2,3794.1,1.83491586]
[1641175753753,5.2713,3794.2,3794.0,3.04280926]
[1641175753953,5.2713,3794.2,3794.1,0.41336678]
[1641175754797,5.2713,3794.2,3794.1,0.87440348]
[1641175755197,5.2713,3794.2,3794.1,1.48050327]
[1641175755600,8.26194192,3794.2,3794.1,1.48050327]
[1641175755802,8.26194192,3794.2,3794.1,2.13911327]
[1641175756203,5.2713,3794.2,3794.1,2.13911327]
[1641175759254,5.17292893,3794.2,3794.1,3.13911327]
[1641175759456,5.17292893,3794.2,3794.1,2.13911327]
[1641175760458,5.17292893,3794.2,3794.1,3.93339705]
[1641175764504,5.17292893,3794.2,3794.1,3.93852652]
[1641175765105,5.17292893,3794.2,3794.1,4.93852652]
[1641175765943,5.17292893,3794.2,3794.1,2.14424274]
[1641175766549,5.17192893,3794.2,3794.1,3.14424274]
[1641175767047,5.17106893,3794.2,3794.1,3.14424274]
[1641175767551,5.17106893,3794.2,3794.1,2.14424274]
[1641175768146,5.17106893,3794.2,3794.1,3.14424274]
[1641175768648,5.17106893,3794.2,3794.1,4.9383719]
[1641175769902,5.17106893,3794.2,3794.1,3.14424274]
[1641175771806,0.0520364,3794.5,3794.2,5.75]
[1641175772006,0.0520364,3794.5,3794.3,1.681]
[1641175772211,0.00909478,3794.4,3794.3,2.3701441]
[1641175772406,0.00909478,3794.4,3794.3,2.6701441]
[1641175775053,0.00909478,3794.4,3794.3,4.46419674]
[1641175780652,0.00909478,3794.4,3794.3,3.46419674]
[1641175783353,2.99927034,3794.4,3794.3,1.6701441]
[1641175783754,0.00909478,3794.4,3794.3,1.6701441]
[1641175784398,2.99927034,3794.4,3794.3,1.6701441]
[1641175784598,2.99927034,3794.4,3794.3,2.6701441]
[1641175784800,0.00909478,3794.4,3794.3,2.6701441]
[1641175785605,0.00909478,3794.4,3794.3,4.46419674]
[1641175786599,0.00909478,3794.4,3794.3,7.05428747]
[1641175787001,0.00909478,3794.4,3794.3,4.46419674]
[1641175787702,0.00909478,3794.4,3794.3,7.05667567]
[1641175787957,0.00909478,3794.4,3794.3,7.01898894]
[1641175788356,0.00909478,3794.4,3794.3,5.2249363]
[1641175788957,0.00909478,3794.4,3794.3,7.01898894]
[1641175790661,0.00909478,3794.4,3794.3,6.98843484]
[1641175792107,0.00909478,3794.4,3794.3,7.71648636]
[1641175792309,0.0520364,3794.5,3794.3,7.71648636]
[1641175792510,0.0520364,3794.5,3794.4,2.62373328]
[1641175792708,0.0520364,3794.5,3794.4,3.00473328]
[1641175792908,0.0520364,3794.5,3794.4,4.00473328]
[1641175793312,1.85352787,3795.4,3794.4,4.00473328]
[1641175793511,0.54237827,3795.4,3794.9,0.65859]
[1641175793711,5.27501581,3795.3,3794.9,0.65859]
[1641175793910,5.27501581,3795.3,3794.9,1.25859]
[1641175794209,2.9945415,3795.2,3794.9,0.6]
[1641175794408,5.2699,3795.1,3794.8,1.91717]
[1641175794607,5.27387896,3795.1,3794.8,1.91717]
[1641175794809,0.00341054,3795.0,3794.9,2.7660457]
[1641175795009,0.00341054,3795.0,3794.9,3.0660457]
[1641175795208,2.99340466,3795.0,3794.9,3.0660457]
[1641175795456,2.99340466,3795.0,3794.9,3.07115204]
[1641175797756,2.99340466,3795.0,3794.9,5.67115204]
[1641175797957,2.99340466,3795.0,3794.9,3.56368634]
[1641175798163,2.99340466,3795.0,3794.9,6.62257403]
[1641175798558,2.99581466,3795.1,3795.0,8.05]
[1641175798860,2.99581466,3795.1,3795.0,11.38374976]
[1641175799107,0.54237827,3795.4,3795.1,8.65]
[1641175799311,0.54237827,3795.4,3795.3,5.45842]
[1641175799508,0.54237827,3795.4,3795.3,2.11114583]
[1641175799708,0.54237827,3795.4,3795.3,4.70715413]
[1641175800712,0.54237827,3795.4,3795.3,4.73979698]
[1641175801019,0.54237827,3795.4,3795.3,6.08497003]
[1641175802113,0.54237827,3795.4,3795.3,4.73979698]
[1641175802515,0.54237827,3795.4,3795.3,5.73979698]
[1641175802716,0.0520349,3795.7,3795.5,0.65836]
[1641175802960,0.0520349,3795.7,3795.6,3.75476678]
[1641175803360,6.21,3795.9,3795.6,3.75476678]
[1641175803762,0.00454739,3795.8,3795.6,4.41314678]
[1641175803963,0.00454739,3795.8,3795.7,3.63837785]
[1641175804163,6.21,3795.9,3795.7,4.35675675]
[1641175804363,6.21,3795.9,3795.7,5.70715246]
[1641175804560,6.21,3795.9,3795.7,5.72187231]
[1641175804962,6.21,3795.9,3795.8,0.03932001]
[1641175805164,6.21,3795.9,3795.8,0.42032001]
[1641175805361,6.21,3795.9,3795.8,3.00001952]
[1641175805362,6.21511581,3795.9,3795.8,3.00001952]
[1641175805566,6.21511581,3795.9,3795.8,4.34507542]
[1641175805965,6.21511581,3795.9,3795.8,1.76537591]
[1641175806168,6.11511581,3795.9,3795.8,4.35582301]
[1641175807219,0.00511581,3795.9,3795.8,4.35582301]
[1641175807419,0.00511581,3795.9,3795.8,6.95582301]
[1641175808021,0.00511581,3795.9,3795.8,4.36537591]
[1641175808220,0.00511581,3795.9,3795.8,6.95117422]
[1641175809327,0.00511581,3795.9,3795.8,5.60611832]
[1641175811067,0.00511581,3795.9,3795.8,6.95117422]
[1641175811762,0.00511581,3795.9,3795.8,5.60611832]
[1641175812167,0.00511581,3795.9,3795.8,6.60611832]
[1641175813265,0.00511581,3795.9,3795.8,22.00611832]
[1641175813474,0.05203447,3796.3,3795.8,22.00611832]
[1641175813475,0.05203447,3796.3,3795.9,8.65]
[1641175813668,0.05203447,3796.3,3796.1,0.65822]
[1641175813875,6.21,3796.7,3796.3,6.8]
[1641175814138,5.268,3796.6,3796.4,4.3190317]
[1641175814316,5.27197896,3796.6,3796.5,3.64650945]
[1641175814517,5.268,3796.6,3796.5,4.3024904]
[1641175814717,5.268,3796.6,3796.5,0.71452138]
[1641175815117,5.268,3796.6,3796.5,0.681]
[1641175817223,5.268,3796.6,3796.5,0.3]
[1641175817422,5.268,3796.6,3796.4,0.3949278]
[1641175817961,0.00341054,3796.5,3796.4,0.3949278]
[1641175819177,2.83527542,3796.5,3796.3,0.3]
[1641175819465,0.00284212,3796.4,3796.0,0.05162527]
[1641175819667,5.268,3796.3,3796.0,0.05162527]
[1641175819863,5.27027369,3796.3,3796.0,0.05162527]
[1641175820065,0.00170527,3796.2,3796.0,0.05162527]
[1641175820364,5.26913685,3796.1,3796.0,0.05162527]
[1641175821263,5.26913685,3796.1,3795.8,3.2]
[1641175825017,2.86737494,3796.0,3795.8,2.6]
[1641175825475,9.418,3795.9,3795.8,2.6]
[1641175825675,8.25130424,3795.9,3795.8,2.6]
[1641175825874,8.14334366,3795.9,3795.8,2.6]
[1641175826477,8.14334366,3795.9,3795.8,3.2]
[1641175826977,8.14334366,3795.9,3795.8,6.11820106]
[1641175827180,8.14334366,3795.9,3795.8,3.2]
[1641175827579,8.14334366,3795.9,3795.8,3.581]
[1641175828680,5.218,3795.9,3795.8,3.581]
[1641175829906,5.218,3795.9,3795.8,3.2]
[1641175831108,8.17366229,3795.9,3795.8,3.2]
[1641175842172,8.17366229,3795.9,3795.8,2.6]
[1641175843766,8.17366229,3795.9,3795.8,2.9]
[1641175846014,8.17366229,3795.9,3795.8,2.6]
[1641175846215,8.5,3795.8,3795.7,0.00687574]
[1641175846417,14.718,3795.8,3795.7,0.00687574]
[1641175846615,13.718,3795.8,3795.7,0.00801259]
[1641175847016,5.218,3795.8,3795.7,0.00801259]
[1641175848084,5.218,3795.8,3795.7,2.60801259]